Cogmind - Beta 10.2 @@@ ROGUE MODE // 2021.08.31 @ 11:13:58 Player: Seani Result: Destroyed by Y-45 Defender with Heavy Assault Rifle Performance ------------- Evolutions (1) 500 Regions Visited (2) 400 Robots Destroyed (7) 35 Value Destroyed (251) 251 Prototype IDs (0) 0 Alien Tech Used (0) 0 Bonus (0) 0 TOTAL SCORE: 1186 Bonus ------- None Cogmind --------- Core Integrity 0/400 Matter 229/300 Energy 98/100 System Corruption 0% Temperature Cool (9) Movement Core (50) Location -9/Materials Parts ------- > --- POWER (2) -------- (None) > --- PROPULSION (2) --- (None) > --- UTILITY (3) ------ (None) > --- WEAPON (2) ------- (None) > --- INVENTORY (4) ---- Propulsion Shielding Peak State ------------ > --- POWER ------------ Ion Engine Light Ion Engine > --- PROPULSION ------- Wheel Compact Wheel > --- UTILITY ---------- Medium Storage Unit Sensor Array Improved Targeting Computer > --- WEAPON ----------- Assault Rifle Assault Rifle > --- INVENTORY -------- Propulsion Shielding EM Pulse Gun Grenade Launcher [Rating: 10] Favorites ----------- Power Ion Engine Engine Ion Engine Propulsion Wheel Leg Aluminum Leg Wheel Wheel Hover Unit Improved Hover Unit Flight Unit VTOL Module Utility Sensor Array Device Sensor Array Storage Medium Storage Unit Processor Improved Targeting Computer Protection Propulsion Shielding Weapon Assault Rifle Energy Gun EM Pulse Gun Ballistic Gun Assault Rifle Build | -11 -10 -9 ------- Run | Scr Mat Mat Slots Evolved 2 | . . 2 Power 1 | . . 1 Propulsion . | . . . Utility 1 | . . 1 Weapon . | . . . Parts Attached 29 | 7 4 18 Power 6 | 2 1 3 Engine 6 | 2 1 3 Core . | . . . Reactor . | . . . Propulsion 9 | 2 . 7 Treads . | . . . Leg 1 | . . 1 Wheel 4 | 2 . 2 Hover 2 | . . 2 Flight 2 | . . 2 Utility 9 | 1 3 5 Device 3 | . 1 2 Storage 3 | 1 1 1 Processor 2 | . 1 1 Hackware . | . . . Protection 1 | . . 1 Artifact . | . . . Weapon 5 | 2 . 3 Energy Gun 1 | . . 1 Energy Cannon . | . . . Ballistic Gun 4 | 2 . 2 Ballistic Cannon . | . . . Launcher . | . . . Special Weapon . | . . . Impact Weapon . | . . . Slashing Weapon . | . . . Piercing Weapon . | . . . Special Melee Weapon . | . . . Unidentified Prototypes . | . . . Parts Lost 10 | . . 10 Power 2 | . . 2 Propulsion 4 | . . 4 Utility 1 | . . 1 Weapon 3 | . . 3 Highest Loss Streak 6 | . . 6 Average Slot Usage (%) 72 | . 94 52 Engine 12 | . 14 11 Wheel 17 | . 28 8 Device 7 | . 3 11 Storage 11 | . 14 8 Processor 3 | . 5 1 Ballistic Gun 15 | . 28 4 Naked Turns 37 | . . 37 Heaviest Build 21 | 13 18 21 Greatest Support 26 | 26 26 26 Greatest Overweight (x) 3 | . . 3 Average Overweight (x) . | . . . Largest Inventory Capacity 8 | 6 8 8 Average Capacity 6 | 5 6 6 Most Carried 8 | 3 6 8 Average Carried 3 | 1 3 3 Final Capacity 8 | 6 8 4 Final Carried 5 | 2 5 1 Class Distribution -------------------- 100% | Mutant Dominant Class ---------------- Mutant | -10/Materials Mutant | -9/Materials Resources | -11 -10 -9 ----------- Run | Scr Mat Mat Matter Collected 468 | 210 160 98 Remotely . | . . . Salvage Created 310 | . 164 146 Parts 13 | . 6 7 Haulers Intercepted . | . . . Recyclers Shooed . | . . . Parts Field Recycled . | . . . Retrieved Matter . | . . . Parts Self-Destructed . | . . . Prevented . | . . . Kills | -11 -10 -9 ------- Run | Scr Mat Mat Combat Hostiles Destroyed 7 | . 4 3 Guns 7 | . 4 3 Classes Destroyed 1 | . 1 . Grunt 7 | . 4 3 Best Kill Streak 3 | . 3 3 Combat Bots Only 3 | . 3 3 Max Kills in Single Turn 1 | . 1 1 Gunslinging . | . . . Exploded . | . . . Melee . | . . . Uniques/NPCs Destroyed . | . . . Combat | -11 -10 -9 -------- Run | Scr Mat Mat Damage Taken 1188 | . 200 988 Core 468 | . 65 403 Absorbed by Shields . | . . . Core Remaining (%) 87 | 100 74 . Volleys Fired 26 | . 10 16 Largest 2 | . 2 2 Hottest 40 | . 40 40 Shots Fired 42 | . 20 22 Gun 42 | . 20 22 Cannon . | . . . Launcher . | . . . Special . | . . . Kinetic 33 | . 20 13 Thermal . | . . . Explosive . | . . . Electromagnetic 9 | . . 9 Robot Hit Streak 16 | . 7 16 Robot Miss Streak 2 | . 1 2 Penetration Max . | . . . Secondary Targets 2 | . 2 . Max Gunslinging Chain 1 | . 1 . Shots Hit Robots 35 | . 16 19 Core Hits 14 | . 6 8 Critical Hits . | . . . Critical Kills . | . . . Critical Parts Destroyed . | . . . Melee Attacks . | . . . Impact . | . . . Slashing . | . . . Piercing . | . . . Sneak Attacks . | . . . Combat Hostiles . | . . . Follow-up Attacks . | . . . Damage Inflicted 492 | . 199 293 Guns 492 | . 199 293 Cannons . | . . . Explosions . | . . . Melee . | . . . Ramming . | . . . Kinetic 369 | . 199 170 Thermal . | . . . Explosive . | . . . Electromagnetic 123 | . . 123 Impact . | . . . Slashing . | . . . Piercing . | . . . Highest Corruption . | . . . Average Corruption . | . . . Corruption Purged . | . . . Overload Shots . | . . . Overflow Damage . | . . . Projectiles . | . . . Explosions . | . . . Melee . | . . . Knockbacks . | . . . Impact . | . . . Kinetic . | . . . Secondary . | . . . Self-Inflicted Damage . | . . . Shots . | . . . Rammed . | . . . Targets Rammed . | . . . Kicked . | . . . Crushed . | . . . Highest Temperature 48 | . 5 48 Average Temperature 21 | . 5 25 Received Heat Transfer 522 | . 108 414 Siege Activations . | . . . Robots Corrupted . | . . . Combat Hostiles . | . . . Parts Fried . | . . . Impact Corruptions . | . . . Robots Melted . | . . . Combat Hostiles . | . . . Parts Melted . | . . . Heat Transferred . | . . . Parts Sabotaged . | . . . Parts Stolen . | . . . Parts Stripped . | . . . Power Chain Reactions . | . . . Missiles Intercepted . | . . . Alert | -11 -10 -9 ------- Run | Scr Mat Mat Peak Influence 163 | . 163 103 Initial 68 | . . 68 Average 55 | . 53 70 Maximum Alert Level . | . . . Low Security (%) 100 | 100 100 100 Level 1 . | . . . Level 2 . | . . . Level 3 . | . . . Level 4 . | . . . Level 5 . | . . . High Security . | . . . Max Security . | . . . Squads Dispatched 2 | . 2 . Investigation 1 | . 1 . Extermination . | . . . Reinforcement 1 | . 1 . Assault . | . . . Garrison . | . . . Intercept . | . . . Construction Impeded . | . . . Haulers Reinforced . | . . . Stealth | -11 -10 -9 --------- Run | Scr Mat Mat Distress Signals . | . . . Communications Jammed . | . . . Distress Signals . | . . . Times Spotted 18 | . 6 12 Peak Tracking Total 8 | . 3 8 Tactical Retreats 1 | . . 1 Traps | -11 -10 -9 ------- Run | Scr Mat Mat Traps Triggered 1 | . 1 . Indirectly . | . . . Trap Hack Attempts . | . . . Triggered . | . . . Disarmed . | . . . Reprogrammed . | . . . Reused . | . . . Traps Extracted . | . . . Installed . | . . . Triggered . | . . . Machines | -11 -10 -9 ---------- Run | Scr Mat Mat Machines Disabled . | . . . Max in Single Turn . | . . . Machines Sabotaged . | . . . Garrisons Compromised . | . . . Overloaded Fab Kills . | . . . Fab Network Shutdowns . | . . . Hacking | -11 -10 -9 --------- Run | Scr Mat Mat Machines Accessed 6 | . 4 2 Terminals 6 | . 4 2 Fabricators . | . . . Repair Stations . | . . . Recycling Units . | . . . Scanalyzers . | . . . Garrison Access . | . . . Total Hacks 12 | . 8 4 Successful 7 | . 5 2 Failed 5 | . 3 2 Catastrophic 1 | . . 1 Database Lockouts . | . . . Manual . | . . . Terminals 12 | . 8 4 Fabricators . | . . . Repair Stations . | . . . Recycling Units . | . . . Scanalyzers . | . . . Garrison Access . | . . . Terminal Hacks 7 | . 5 2 Emergency Access Points 1 | . . 1 Repair Station Index 1 | . . 1 Recycling Unit Index 1 | . 1 . Alert Level 1 | . 1 . Dispatch Records 1 | . 1 . Recall Investigation 1 | . 1 . Zone Layout 1 | . 1 . Fabricator Hacks . | . . . Repair Station Hacks . | . . . Recycling Unit Hacks . | . . . Scanalyzer . | . . . Garrison Access Hacks . | . . . Unauthorized Hacks . | . . . Terminals . | . . . Fabricators . | . . . Repair Stations . | . . . Recycling Units . | . . . Scanalyzers . | . . . Garrison Access . | . . . Data Cores Recovered . | . . . Used . | . . . Hacking Detections 4 | . 2 2 Full Trace Events . | . . . Feedback Events . | . . . Feedback Blocked . | . . . Robot Schematics Acquired . | . . . Robots Built . | . . . Matter . | . . . Time . | . . . Total Robot Build Rating . | . . . Part Schematics Acquired . | . . . Parts Built . | . . . Matter . | . . . Time . | . . . Total Part Build Rating . | . . . Parts Repaired . | . . . Time . | . . . Parts Recycled . | . . . Recycled Matter . | . . . Retrieved Matter . | . . . Retrieved Components . | . . . Parts Scanalyzed . | . . . Part Schematics Acquired . | . . . Parts Damaged . | . . . Bothacking | -11 -10 -9 ------------ Run | Scr Mat Mat Used RIF Installer . | . . . Robots Hacked . | . . . Non-combat . | . . . Combat . | . . . Robot Hacks Applied . | . . . Relay Couplers Released . | . . . Robots Rewired . | . . . Allies Hacked . | . . . Hacks Repelled . | . . . Allies | -11 -10 -9 -------- Run | Scr Mat Mat Total Allies . | . . . Largest Group . | . . . Highest-Rated Group . | . . . Highest-Rated Ally . | . . . Total Orders . | . . . Ally Attacks . | . . . Total Damage . | . . . Kills . | . . . Allies Corrupted . | . . . Allies Melted . | . . . Intel | -11 -10 -9 ------- Run | Scr Mat Mat Robot Analysis Total . | . . . Derelict Logs Recovered . | . . . Drone Launches . | . . . Drone Recoveries . | . . . Exploration | -11 -10 -9 ------------- Run | Scr Mat Mat Turns Passed 536 | 60 219 257 Spaces Moved 469 | 56 195 218 Core 99 | 13 . 86 Treads . | . . . Legs 7 | . . 7 Wheels 332 | 43 195 94 Hover 15 | . . 15 Flight 16 | . . 16 Fastest Speed 40 | 50 90 40 Average Speed 84 | 80 90 80 Slowest Speed 200 | 90 90 200 Overloaded Moves . | . . . Propulsion Burnouts . | . . . Robots Hopped . | . . . Cave-ins Triggered . | . . . Exploration Rate (%) 16 | 5 28 17 Regions Visited 2 Branch Regions . Pre-discovered Areas . | . . . Known Exits Taken . | . . . Unknown Exits Taken 2 | 1 1 . Scrap Searched . | . . . Spaces Dug . | . . . Terrain Destroyed . | . . . Melee . | . . . Projectile . | . . . AOE . | . . . Terrain Rammed . | . . . Walls Destroyed . | . . . Machines Disabled . | . . . Actions | -11 -10 -9 --------- Run | Scr Mat Mat Total 576 | 70 218 288 Wait . | . . . Move 467 | 55 194 218 Hop . | . . . Pick Up 30 | 8 7 15 Fast Attach . | . . . Attach 23 | 6 2 15 Detach 5 | . . 5 Swap 6 | 1 2 3 Drop 19 | . 3 16 Fire 26 | . 10 16 Melee . | . . . Ram . | . . . Kick . | . . . Crush . | . . . Escape Stasis . | . . . Rewire . | . . . Trap . | . . . Miscellaneous . | . . . Route ------- -11/Scrapyard -10/Materials -9/Materials (discovered 1 exit: [*Mat]) History --------- Turn | Location | Event 3 | -11/Scrapyard | Discovered new exit (range 15) 61 | -11/Scrapyard | Entered Materials 168 | -10/Materials | Discovered new exit (range 10) 280 | -10/Materials | Entered another Materials area 280 | -9/Materials | Evolved 2 slots: Power x1, Utility x1 302 | -9/Materials | Build established: Mutant 485 | -9/Materials | Lost 6 parts (2p2n1u1w) 498 | -9/Materials | Core integrity fell below 50% 504 | -9/Materials | Core integrity fell below 20% 531 | -9/Materials | Lost 4 parts (2n2w) 537 | -9/Materials | Discovered new exit (range 8) 537 | -9/Materials | Destroyed by Y-45 Defender with Heavy Assault Rifle Last Messages --------------- 00491_ Assault Rifle destroyed. 00491_ K-01 Serf collects debris. 00497_ Aluminum Leg destroyed. 00498_ K-01 Serf collects debris. 00500_ Dropped Med. Storage Unit. 00500_ VTOL Module destroyed. 00500_ Dropped Sensor Array. 00501_ K-01 Serf collects debris. 00526_ T-07 Excavator is excavating. 00534_ K-01 Serf collects debris. 00535_ Connecting with Terminal... >>Access(Emergency) Found 1 emergency access door: (69,81) Map updated. >>Index(Repair Stations) Found 2 repair stations. Downloaded coordinate data. 00537_ EXIT=FOUND 00537_ T-07 Excavator is excavating. Map ----- +----------------------------------------------------+ | ???????# ????????# # #?????????????? | | ???????# ?????????######## #?????????????? | | ???????#?????????????????# #?????????????? | | ?????????????????????????# #?????????????? | | ?????????????????????????# #?????????????? | | ?????????????????????????# #?????????????? | | ?????????????????????????# #?????????????? | | ?????????????????????????# #?????????????? | | ?????????????????????????# #?????????????? | | ?????????????????????????# #?????????????? | | ?????????????????????????# #?????????????? | | ?????????????????????????+ +?????????????? | | ?????????????????????????# #?????????????? | | ?????????????????????????# #?????????????? | | ?????????????????????????# #?????????????? | | ?????????????????????????# #?????????????? | | ?????????????????????????# #?????????????? | | ?????????????????????????# ####??????????? | | ????????????????????????## !!##?????????? | | ?????????????+??????????#T !#?????????? | | ????????????????????????## !#?????????? | | ?????????????????????????# k#?????????? | | ?????????????????????????# !#?????????? | | ?????????????????????????# !!##?????????? | | ??????????????# ###### ####??????????? | | ?????????? Y @ #?????????????? | | ??????????????# ###### #?????????????? | | ?????????????????????????# #?????????????? | | ?????????????????????????# #?????????????? | | ?????????????????????????# ????????????? | | ?????????????????????????#